[Event "Early-Titled-Tuesday-Blitz-March-26-2024"]
[Site "Chess.com"]
[Date "2024.03.26"]
[Round "3"]
[White "masnyszachistaaa"]
[Black "ilya2700"]
[Result "1-0"]
[WhiteElo "2572"]
[BlackElo "2338"]
[TimeControl "180+1"]
[EndTime "8:27:14 PDT"]
[Termination "masnyszachistaaa won by checkmate"]

1. c4 {[%clk 0:03:00.9]} 1... Nf6 {[%clk 0:03:00]} 2. Nf3 {[%clk 0:02:56.6]}
2... g6 {[%clk 0:03:00.9]} 3. b3 {[%clk 0:02:51.1]} 3... Bg7 {[%clk 0:03:01.8]}
4. Bb2 {[%clk 0:02:51.7]} 4... O-O {[%clk 0:03:01.8]} 5. g3 {[%clk 0:02:52.2]}
5... d6 {[%clk 0:03:01.6]} 6. Bg2 {[%clk 0:02:52.8]} 6... e5 {[%clk 0:03:01.9]}
7. O-O {[%clk 0:02:49.5]} 7... e4 {[%clk 0:02:55.8]} 8. Ng5 {[%clk 0:02:46.7]}
8... Re8 {[%clk 0:02:49]} 9. Nc3 {[%clk 0:02:39.2]} 9... h6 {[%clk 0:02:36.9]}
10. Nh3 {[%clk 0:02:33.8]} 10... g5 {[%clk 0:02:17]} 11. d3 {[%clk 0:02:15.7]}
11... Bg4 {[%clk 0:02:01.8]} 12. f3 {[%clk 0:01:57.3]} 12... exf3 {[%clk
0:01:46.5]} 13. exf3 {[%clk 0:01:58.2]} 13... Bf5 {[%clk 0:01:34.6]} 14. f4
{[%clk 0:01:53.2]} 14... Bxh3 {[%clk 0:01:16.3]} 15. Bxh3 {[%clk 0:01:52.5]}
15... Nc6 {[%clk 0:01:00.1]} 16. fxg5 {[%clk 0:01:49]} 16... hxg5 {[%clk
0:01:01]} 17. Ne2 {[%clk 0:01:30.7]} 17... Ne5 {[%clk 0:00:52.3]} 18. Nd4 {[%clk
0:01:24.4]} 18... g4 {[%clk 0:00:32.4]} 19. Bg2 {[%clk 0:01:21.5]} 19... c6
{[%clk 0:00:25.2]} 20. Nf5 {[%clk 0:01:18.1]} 20... Re6 {[%clk 0:00:08.6]} 21.
Qd2 {[%clk 0:01:11.3]} 21... Ned7 {[%clk 0:00:05]} 22. Nxg7 {[%clk 0:01:10.6]}
22... Kxg7 {[%clk 0:00:05]} 23. Qg5+ {[%clk 0:01:11.3]} 23... Kf8 {[%clk
0:00:04.7]} 24. Rae1 {[%clk 0:01:06.8]} 24... Ke7 {[%clk 0:00:04.4]} 25. Rxe6+
{[%clk 0:01:05.3]} 25... fxe6 {[%clk 0:00:05.2]} 26. Qg7+ {[%clk 0:01:05.1]}
26... Ke8 {[%clk 0:00:05.6]} 27. Rxf6 {[%clk 0:01:01.6]} 27... Nxf6 {[%clk
0:00:05.7]} 28. Bxf6 {[%clk 0:01:02.3]} 28... Qb6+ {[%clk 0:00:04.1]} 29. d4
{[%clk 0:00:58.2]} 29... Qb4 {[%clk 0:00:03.8]} 30. Qe7# {[%clk 0:00:57.9]} 1-0

[Event "Early-Titled-Tuesday-Blitz-March-26-2024"]
[Site "Chess.com"]
[Date "2024.03.26"]
[Round "3"]
[White "EternalNight8"]
[Black "GeorgiosSouleidis"]
[Result "1-0"]
[WhiteElo "2460"]
[BlackElo "2613"]
[TimeControl "180+1"]
[EndTime "8:27:15 PDT"]
[Termination "EternalNight8 won by resignation"]

1. d4 {[%clk 0:03:00.9]} 1... Nf6 {[%clk 0:02:59.5]} 2. Bg5 {[%clk 0:03:00.9]}
2... d5 {[%clk 0:02:57.8]} 3. e3 {[%clk 0:03:00.7]} 3... c5 {[%clk 0:02:56]} 4.
Bxf6 {[%clk 0:03:00.9]} 4... gxf6 {[%clk 0:02:53.3]} 5. dxc5 {[%clk 0:03:01]}
5... Qa5+ {[%clk 0:02:37.8]} 6. Nc3 {[%clk 0:02:56.3]} 6... e6 {[%clk
0:02:38.1]} 7. a3 {[%clk 0:02:47]} 7... Qxc5 {[%clk 0:02:35.2]} 8. Nf3 {[%clk
0:02:44.8]} 8... Nc6 {[%clk 0:02:32.3]} 9. Be2 {[%clk 0:02:36.5]} 9... Bg7
{[%clk 0:02:29.6]} 10. O-O {[%clk 0:02:31.3]} 10... O-O {[%clk 0:02:29.9]} 11.
Qd2 {[%clk 0:02:12.4]} 11... f5 {[%clk 0:02:27.4]} 12. Rad1 {[%clk 0:02:07.4]}
12... b6 {[%clk 0:02:22.7]} 13. Nb5 {[%clk 0:01:56.5]} 13... Ba6 {[%clk
0:02:06.4]} 14. b4 {[%clk 0:01:41.4]} 14... Qe7 {[%clk 0:02:00.9]} 15. Nbd4
{[%clk 0:01:37.4]} 15... Nxd4 {[%clk 0:01:56.4]} 16. Nxd4 {[%clk 0:01:30.8]}
16... Bxe2 {[%clk 0:01:55]} 17. Qxe2 {[%clk 0:01:31.7]} 17... Rfc8 {[%clk
0:01:52.3]} 18. Rd3 {[%clk 0:01:01.9]} 18... Rc4 {[%clk 0:01:32.8]} 19. b5
{[%clk 0:01:00.4]} 19... a6 {[%clk 0:01:17.6]} 20. bxa6 {[%clk 0:00:46.7]} 20...
Rxa6 {[%clk 0:01:18.5]} 21. Rb1 {[%clk 0:00:39.2]} 21... Qc5 {[%clk 0:00:32.6]}
22. h3 {[%clk 0:00:28.6]} 22... Bxd4 {[%clk 0:00:26.4]} 23. exd4 {[%clk
0:00:29.5]} 23... Rxd4 {[%clk 0:00:27]} 24. Rxd4 {[%clk 0:00:28.3]} 24... Qxd4
{[%clk 0:00:27.9]} 25. Qxa6 {[%clk 0:00:28.5]} 1-0

[Event "Early-Titled-Tuesday-Blitz-March-26-2024"]
[Site "Chess.com"]
[Date "2024.03.26"]
[Round "3"]
[White "kyuotbi"]
[Black "biveklama"]
[Result "0-1"]
[WhiteElo "2298"]
[BlackElo "2564"]
[TimeControl "180+1"]
[EndTime "8:27:22 PDT"]
[Termination "biveklama won by resignation"]

1. e4 {[%clk 0:03:00.9]} 1... c5 {[%clk 0:02:53.8]} 2. Nf3 {[%clk 0:03:00.5]}
2... d6 {[%clk 0:02:54.1]} 3. d4 {[%clk 0:02:59.6]} 3... cxd4 {[%clk 0:02:54.4]}
4. Nxd4 {[%clk 0:02:58.8]} 4... Nf6 {[%clk 0:02:54.7]} 5. Nc3 {[%clk 0:02:58]}
5... e5 {[%clk 0:02:55.1]} 6. Bb5+ {[%clk 0:02:56.1]} 6... Nbd7 {[%clk 0:02:55]}
7. Nf5 {[%clk 0:02:53.7]} 7... a6 {[%clk 0:02:55.9]} 8. Bxd7+ {[%clk 0:02:13.3]}
8... Qxd7 {[%clk 0:02:56.8]} 9. Ne3 {[%clk 0:02:08.8]} 9... Qc6 {[%clk
0:02:56.6]} 10. Ned5 {[%clk 0:02:00.2]} 10... Nxd5 {[%clk 0:02:56.4]} 11. Nxd5
{[%clk 0:01:59.3]} 11... Be6 {[%clk 0:02:56.5]} 12. O-O {[%clk 0:01:57.8]} 12...
Bxd5 {[%clk 0:02:56.9]} 13. exd5 {[%clk 0:01:58.1]} 13... Qd7 {[%clk 0:02:57.5]}
14. f4 {[%clk 0:01:55.8]} 14... f5 {[%clk 0:02:49.7]} 15. fxe5 {[%clk
0:01:52.7]} 15... dxe5 {[%clk 0:02:49.9]} 16. c4 {[%clk 0:01:52]} 16... Bc5+
{[%clk 0:02:47.2]} 17. Kh1 {[%clk 0:01:52]} 17... O-O {[%clk 0:02:48]} 18. Bd2
{[%clk 0:01:50.1]} 18... Rae8 {[%clk 0:02:43.6]} 19. Qe2 {[%clk 0:01:44.6]}
19... e4 {[%clk 0:02:38.4]} 20. b4 {[%clk 0:01:43.5]} 20... Bd4 {[%clk 0:02:38]}
21. Rad1 {[%clk 0:01:43]} 21... Be5 {[%clk 0:02:13.5]} 22. Bf4 {[%clk
0:01:40.2]} 22... Bxf4 {[%clk 0:02:12.6]} 23. Rxf4 {[%clk 0:01:40.2]} 23... Qd6
{[%clk 0:02:12.9]} 24. Rdf1 {[%clk 0:01:27.9]} 24... Qxb4 {[%clk 0:01:57.3]} 25.
Rxf5 {[%clk 0:01:27.1]} 25... Rxf5 {[%clk 0:01:57.4]} 26. Rxf5 {[%clk
0:01:27.3]} 26... e3 {[%clk 0:01:48.3]} 27. Rf1 {[%clk 0:00:54.2]} 27... h6
{[%clk 0:01:14]} 28. Qh5 {[%clk 0:00:43.7]} 28... Rf8 {[%clk 0:01:03.5]} 29.
Rxf8+ {[%clk 0:00:40.1]} 29... Qxf8 {[%clk 0:01:04.4]} 30. Qd1 {[%clk
0:00:31.2]} 30... Qf2 {[%clk 0:00:59.3]} 31. Qg1 {[%clk 0:00:23.2]} 31... Qd2
{[%clk 0:00:55.2]} 32. d6 {[%clk 0:00:21.1]} 32... e2 {[%clk 0:00:54.9]} 33. d7
{[%clk 0:00:20.5]} 33... Qxd7 {[%clk 0:00:54]} 0-1

[Event "Early-Titled-Tuesday-Blitz-March-26-2024"]
[Site "Chess.com"]
[Date "2024.03.26"]
[Round "3"]
[White "MaxLeto"]
[Black "WiktoriaPOL"]
[Result "1-0"]
[WhiteElo "2489"]
[BlackElo "2268"]
[TimeControl "180+1"]
[EndTime "8:27:24 PDT"]
[Termination "MaxLeto won on time"]

1. a3 {[%clk 0:02:44.6]} 1... d5 {[%clk 0:02:56.8]} 2. b3 {[%clk 0:02:45.5]}
2... e5 {[%clk 0:02:55]} 3. c3 {[%clk 0:02:46.4]} 3... Nf6 {[%clk 0:02:51.6]} 4.
d3 {[%clk 0:02:47.3]} 4... c5 {[%clk 0:02:47.8]} 5. e3 {[%clk 0:02:48.2]} 5...
Nc6 {[%clk 0:02:48.1]} 6. f3 {[%clk 0:02:49.1]} 6... Bd6 {[%clk 0:02:42.5]} 7.
g3 {[%clk 0:02:50]} 7... Be6 {[%clk 0:02:40.7]} 8. h3 {[%clk 0:02:50.9]} 8... h5
{[%clk 0:02:36.7]} 9. Ne2 {[%clk 0:02:50.1]} 9... e4 {[%clk 0:02:30.9]} 10. dxe4
{[%clk 0:02:46.3]} 10... dxe4 {[%clk 0:02:27.7]} 11. f4 {[%clk 0:02:47]} 11...
O-O {[%clk 0:02:12.4]} 12. c4 {[%clk 0:02:40.3]} 12... Qc7 {[%clk 0:02:02.2]}
13. Nbc3 {[%clk 0:02:38.3]} 13... a6 {[%clk 0:02:01.2]} 14. Bb2 {[%clk 0:02:37]}
14... Rad8 {[%clk 0:01:57]} 15. Qc2 {[%clk 0:02:37.5]} 15... Qa5 {[%clk
0:01:49.9]} 16. O-O-O {[%clk 0:01:58]} 16... Bf5 {[%clk 0:01:23.3]} 17. Kb1
{[%clk 0:01:37]} 17... b5 {[%clk 0:01:14]} 18. Nd5 {[%clk 0:01:34.9]} 18... Nxd5
{[%clk 0:01:01.6]} 19. cxd5 {[%clk 0:01:35.3]} 19... Ne7 {[%clk 0:00:57.3]} 20.
Bg2 {[%clk 0:01:35.6]} 20... c4 {[%clk 0:00:41.4]} 21. b4 {[%clk 0:01:33.2]}
21... Qb6 {[%clk 0:00:38.4]} 22. Nd4 {[%clk 0:01:22]} 22... Bg6 {[%clk
0:00:31.1]} 23. g4 {[%clk 0:01:21.2]} 23... Nxd5 {[%clk 0:00:27.1]} 24. Bc1
{[%clk 0:01:08.7]} 24... Nf6 {[%clk 0:00:11.3]} 25. f5 {[%clk 0:01:07.1]} 25...
Bh7 {[%clk 0:00:10.1]} 26. g5 {[%clk 0:01:07]} 26... Nd7 {[%clk 0:00:07.5]} 27.
Bxe4 {[%clk 0:01:07.9]} 27... Ne5 {[%clk 0:00:07.3]} 28. g6 {[%clk 0:01:05.3]}
28... fxg6 {[%clk 0:00:07]} 29. fxg6 {[%clk 0:01:06.2]} 29... Nxg6 {[%clk
0:00:06.1]} 30. Bxg6 {[%clk 0:01:07.1]} 30... Bxg6 {[%clk 0:00:05.2]} 31. Qxg6
{[%clk 0:01:08]} 31... Rf2 {[%clk 0:00:04]} 32. Rhg1 {[%clk 0:01:04.8]} 32...
Qc7 {[%clk 0:00:02.1]} 33. Ne6 {[%clk 0:01:03.2]} 1-0

[Event "Early-Titled-Tuesday-Blitz-March-26-2024"]
[Site "Chess.com"]
[Date "2024.03.26"]
[Round "3"]
[White "Bauman_Guy"]
[Black "Agibileg"]
[Result "0-1"]
[WhiteElo "2910"]
[BlackElo "2753"]
[TimeControl "180+1"]
[EndTime "8:27:26 PDT"]
[Termination "Agibileg won by resignation"]

1. e4 {[%clk 0:03:00.9]} 1... e5 {[%clk 0:02:57.3]} 2. Nf3 {[%clk 0:03:01]} 2...
Nc6 {[%clk 0:02:57.2]} 3. Bb5 {[%clk 0:03:01.6]} 3... a6 {[%clk 0:02:54.6]} 4.
Ba4 {[%clk 0:03:01.5]} 4... Nf6 {[%clk 0:02:54.7]} 5. O-O {[%clk 0:03:02]} 5...
d6 {[%clk 0:02:54.9]} 6. d4 {[%clk 0:02:57.8]} 6... b5 {[%clk 0:02:53.5]} 7. Bb3
{[%clk 0:02:56]} 7... Nxd4 {[%clk 0:02:43.7]} 8. Nxd4 {[%clk 0:02:56]} 8... exd4
{[%clk 0:02:44.6]} 9. Bg5 {[%clk 0:02:56.2]} 9... Be7 {[%clk 0:02:32.3]} 10. a4
{[%clk 0:02:13.7]} 10... Bb7 {[%clk 0:02:30.7]} 11. Qxd4 {[%clk 0:02:06.6]}
11... c5 {[%clk 0:02:29]} 12. Qd1 {[%clk 0:02:06.2]} 12... c4 {[%clk 0:02:28]}
13. Ba2 {[%clk 0:02:06.5]} 13... O-O {[%clk 0:02:24]} 14. f3 {[%clk 0:01:57.8]}
14... Nh5 {[%clk 0:02:02.3]} 15. Bxe7 {[%clk 0:01:54]} 15... Qxe7 {[%clk
0:02:03.2]} 16. Nc3 {[%clk 0:01:54.7]} 16... Nf4 {[%clk 0:01:59.2]} 17. Qd2
{[%clk 0:01:48.9]} 17... Qg5 {[%clk 0:01:50]} 18. Kh1 {[%clk 0:01:48.8]} 18...
Rfd8 {[%clk 0:01:44.1]} 19. g3 {[%clk 0:01:34.9]} 19... Ne6 {[%clk 0:01:43.1]}
20. Qxg5 {[%clk 0:01:28.7]} 20... Nxg5 {[%clk 0:01:44]} 21. h4 {[%clk
0:01:29.3]} 21... Ne6 {[%clk 0:01:39.4]} 22. axb5 {[%clk 0:01:29.8]} 22... axb5
{[%clk 0:01:33]} 23. Nxb5 {[%clk 0:01:29.8]} 23... d5 {[%clk 0:01:28.2]} 24.
exd5 {[%clk 0:01:23.5]} 24... Bxd5 {[%clk 0:01:20.2]} 25. Nc3 {[%clk 0:01:18.8]}
25... Bb7 {[%clk 0:00:54.2]} 26. Bxc4 {[%clk 0:01:14.4]} 26... Bxf3+ {[%clk
0:00:54.2]} 27. Kg1 {[%clk 0:01:15]} 27... Rxa1 {[%clk 0:00:51.5]} 28. Rxa1
{[%clk 0:01:15.7]} 28... Rd2 {[%clk 0:00:45.9]} 29. Be2 {[%clk 0:00:57.5]} 29...
Bxe2 {[%clk 0:00:43.6]} 30. Ra8+ {[%clk 0:00:57.2]} 30... Nf8 {[%clk 0:00:42.9]}
31. Re8 {[%clk 0:00:45.1]} 31... Bf3 {[%clk 0:00:39.8]} 32. Re3 {[%clk 0:00:45]}
32... Bc6 {[%clk 0:00:37.9]} 33. b4 {[%clk 0:00:45.3]} 33... Rxc2 {[%clk
0:00:37.3]} 34. b5 {[%clk 0:00:45.8]} 34... Bb7 {[%clk 0:00:32]} 35. Re4 {[%clk
0:00:44]} 35... Rxc3 {[%clk 0:00:31.2]} 0-1

[Event "Early-Titled-Tuesday-Blitz-March-26-2024"]
[Site "Chess.com"]
[Date "2024.03.26"]
[Round "3"]
[White "Gorbaev"]
[Black "Kostukov_Alex"]
[Result "1-0"]
[WhiteElo "2502"]
[BlackElo "2270"]
[TimeControl "180+1"]
[EndTime "8:27:26 PDT"]
[Termination "Gorbaev won on time"]

1. Nf3 {[%clk 0:03:00.9]} 1... c5 {[%clk 0:02:57.1]} 2. c4 {[%clk 0:03:00.5]}
2... g6 {[%clk 0:02:58]} 3. Nc3 {[%clk 0:02:59.9]} 3... Bg7 {[%clk 0:02:58.9]}
4. g3 {[%clk 0:03:00.2]} 4... Nf6 {[%clk 0:02:58.1]} 5. Bg2 {[%clk 0:03:00.5]}
5... O-O {[%clk 0:02:58.3]} 6. d4 {[%clk 0:03:00.6]} 6... cxd4 {[%clk
0:02:57.7]} 7. Nxd4 {[%clk 0:03:00.9]} 7... Nc6 {[%clk 0:02:58.6]} 8. Nc2 {[%clk
0:03:00.6]} 8... d6 {[%clk 0:02:58.3]} 9. O-O {[%clk 0:02:59.7]} 9... Be6 {[%clk
0:02:57.8]} 10. b3 {[%clk 0:02:59.9]} 10... Qa5 {[%clk 0:02:54.9]} 11. Bd2
{[%clk 0:02:59.6]} 11... Qh5 {[%clk 0:02:52.7]} 12. Ne3 {[%clk 0:02:59.6]} 12...
Ne5 {[%clk 0:02:36.2]} 13. Rc1 {[%clk 0:02:36.9]} 13... Bh3 {[%clk 0:02:30.8]}
14. Ncd5 {[%clk 0:02:28.6]} 14... Bxg2 {[%clk 0:01:56]} 15. Nxe7+ {[%clk
0:02:19.7]} 15... Kh8 {[%clk 0:01:55.4]} 16. Kxg2 {[%clk 0:02:20.2]} 16... Rae8
{[%clk 0:01:41]} 17. N7d5 {[%clk 0:02:18.2]} 17... Nxd5 {[%clk 0:01:33.4]} 18.
Nxd5 {[%clk 0:02:08.6]} 18... g5 {[%clk 0:01:10.6]} 19. h3 {[%clk 0:01:58]}
19... f5 {[%clk 0:01:06.7]} 20. Bc3 {[%clk 0:01:38.3]} 20... f4 {[%clk
0:00:47.3]} 21. Bxe5 {[%clk 0:01:34.1]} 21... Rxe5 {[%clk 0:00:44.7]} 22. g4
{[%clk 0:01:15.2]} 22... Qe8 {[%clk 0:00:30.1]} 23. Rc2 {[%clk 0:01:11.9]} 23...
h5 {[%clk 0:00:24.1]} 24. f3 {[%clk 0:01:05.7]} 24... Qg6 {[%clk 0:00:18.1]} 25.
Qd3 {[%clk 0:01:01.2]} 25... Qe6 {[%clk 0:00:07.6]} 26. Rd2 {[%clk 0:00:55.9]}
26... Re8 {[%clk 0:00:06.8]} 27. Rf2 {[%clk 0:00:51]} 27... Kg8 {[%clk
0:00:03.6]} 28. Kf1 {[%clk 0:00:44]} 1-0

[Event "Early-Titled-Tuesday-Blitz-March-26-2024"]
[Site "Chess.com"]
[Date "2024.03.26"]
[Round "3"]
[White "ArchibaldCerveza29"]
[Black "NovoselovRoman"]
[Result "0-1"]
[WhiteElo "2360"]
[BlackElo "2555"]
[TimeControl "180+1"]
[EndTime "8:27:30 PDT"]
[Termination "NovoselovRoman won by resignation"]

1. e4 {[%clk 0:03:00.9]} 1... e6 {[%clk 0:02:59]} 2. d4 {[%clk 0:02:59.2]} 2...
d5 {[%clk 0:02:59.4]} 3. Bd3 {[%clk 0:02:58.5]} 3... c5 {[%clk 0:02:56]} 4. exd5
{[%clk 0:02:56.1]} 4... Qxd5 {[%clk 0:02:51.7]} 5. Nf3 {[%clk 0:02:49.7]} 5...
cxd4 {[%clk 0:02:45.6]} 6. O-O {[%clk 0:02:46.8]} 6... Nc6 {[%clk 0:02:45.4]} 7.
c4 {[%clk 0:02:42.2]} 7... Qh5 {[%clk 0:02:40.2]} 8. Bf4 {[%clk 0:02:21.1]} 8...
Nf6 {[%clk 0:02:31.5]} 9. a3 {[%clk 0:01:58.3]} 9... a5 {[%clk 0:02:12.3]} 10.
Nbd2 {[%clk 0:01:50.8]} 10... Bc5 {[%clk 0:02:09.5]} 11. Qa4 {[%clk 0:01:21.9]}
11... Bd7 {[%clk 0:01:42.7]} 12. Qb3 {[%clk 0:01:05.5]} 12... b6 {[%clk
0:01:39.1]} 13. Ne4 {[%clk 0:01:01.2]} 13... Nxe4 {[%clk 0:01:26]} 14. Bxe4
{[%clk 0:01:02.1]} 14... O-O {[%clk 0:01:25.8]} 15. Rfe1 {[%clk 0:00:56.7]}
15... Rac8 {[%clk 0:01:22.7]} 16. Qc2 {[%clk 0:00:37.3]} 16... Ne7 {[%clk
0:00:51]} 17. Rab1 {[%clk 0:00:33.3]} 17... a4 {[%clk 0:00:50.1]} 18. Bd3 {[%clk
0:00:28.3]} 18... Ng6 {[%clk 0:00:46.2]} 19. Bg3 {[%clk 0:00:25.9]} 19... Bc6
{[%clk 0:00:46]} 20. Ne5 {[%clk 0:00:23.7]} 20... Bb7 {[%clk 0:00:42.9]} 21.
Nxg6 {[%clk 0:00:22.3]} 21... hxg6 {[%clk 0:00:43.8]} 22. Re5 {[%clk 0:00:22.3]}
22... Qh6 {[%clk 0:00:42.9]} 23. b4 {[%clk 0:00:18.8]} 23... axb3 {[%clk
0:00:42.2]} 24. Rxb3 {[%clk 0:00:19.2]} 24... Bc6 {[%clk 0:00:39.2]} 25. Rb1
{[%clk 0:00:18]} 25... Ra8 {[%clk 0:00:38.4]} 26. a4 {[%clk 0:00:15.9]} 26...
Bxa4 {[%clk 0:00:37.4]} 27. Qe2 {[%clk 0:00:15.6]} 27... Bc6 {[%clk 0:00:37.2]}
28. Qg4 {[%clk 0:00:13.9]} 28... Ra3 {[%clk 0:00:35.9]} 29. Bf4 {[%clk
0:00:13.7]} 29... Qh7 {[%clk 0:00:32.3]} 30. Rh5 {[%clk 0:00:14.1]} 30... Qxh5
{[%clk 0:00:31.9]} 0-1

[Event "Early-Titled-Tuesday-Blitz-March-26-2024"]
[Site "Chess.com"]
[Date "2024.03.26"]
[Round "3"]
[White "Bilan_Danila"]
[Black "temus_galaktionov"]
[Result "0-1"]
[WhiteElo "2658"]
[BlackElo "2885"]
[TimeControl "180+1"]
[EndTime "8:27:31 PDT"]
[Termination "temus_galaktionov won by resignation"]

1. d4 {[%clk 0:03:00.9]} 1... c6 {[%clk 0:03:00.9]} 2. Nf3 {[%clk 0:02:59.5]}
2... d6 {[%clk 0:03:01.8]} 3. Bg5 {[%clk 0:02:56.6]} 3... g6 {[%clk 0:03:02.7]}
4. c3 {[%clk 0:02:56.5]} 4... Bg7 {[%clk 0:03:00.4]} 5. e4 {[%clk 0:02:55.9]}
5... Nd7 {[%clk 0:03:00.4]} 6. Nbd2 {[%clk 0:02:55.4]} 6... h6 {[%clk
0:03:00.6]} 7. Bh4 {[%clk 0:02:55.5]} 7... Qc7 {[%clk 0:03:00.3]} 8. a4 {[%clk
0:02:51.4]} 8... Ngf6 {[%clk 0:03:00.2]} 9. Qc2 {[%clk 0:02:38.9]} 9... O-O
{[%clk 0:02:59.8]} 10. Bc4 {[%clk 0:02:39]} 10... a5 {[%clk 0:02:59.2]} 11. O-O
{[%clk 0:02:37.4]} 11... e5 {[%clk 0:02:57.5]} 12. Rfe1 {[%clk 0:02:24.9]} 12...
Nb6 {[%clk 0:02:53.1]} 13. Bb3 {[%clk 0:02:19.4]} 13... Re8 {[%clk 0:02:52.9]}
14. dxe5 {[%clk 0:01:56.3]} 14... dxe5 {[%clk 0:02:53.8]} 15. Nc4 {[%clk
0:01:53.2]} 15... Nxc4 {[%clk 0:02:42.8]} 16. Bxc4 {[%clk 0:01:54.1]} 16... Be6
{[%clk 0:02:43.3]} 17. Bxe6 {[%clk 0:01:47.7]} 17... Rxe6 {[%clk 0:02:44.2]} 18.
Rad1 {[%clk 0:01:47]} 18... Rd8 {[%clk 0:02:40]} 19. Rxd8+ {[%clk 0:01:40.9]}
19... Qxd8 {[%clk 0:02:40.9]} 20. Rd1 {[%clk 0:01:41.5]} 20... Rd6 {[%clk
0:02:39]} 21. Rxd6 {[%clk 0:01:41.5]} 21... Qxd6 {[%clk 0:02:39]} 22. Bxf6
{[%clk 0:01:39]} 22... Bxf6 {[%clk 0:02:34.3]} 23. Qd2 {[%clk 0:01:37.4]} 23...
Qe6 {[%clk 0:02:30.4]} 24. Qxh6 {[%clk 0:01:27.5]} 24... Qa2 {[%clk 0:02:28.6]}
25. h4 {[%clk 0:01:16.4]} 25... Qxb2 {[%clk 0:02:22.7]} 26. Qe3 {[%clk
0:00:54.9]} 26... Qa1+ {[%clk 0:02:15.1]} 27. Kh2 {[%clk 0:00:54.5]} 27... Qxa4
{[%clk 0:02:16]} 28. h5 {[%clk 0:00:52.3]} 28... gxh5 {[%clk 0:02:14.5]} 29. Qh6
{[%clk 0:00:37.2]} 29... Bg7 {[%clk 0:02:14]} 30. Qg5 {[%clk 0:00:21.6]} 30...
Qxe4 {[%clk 0:02:10]} 31. Qd8+ {[%clk 0:00:21.7]} 31... Bf8 {[%clk 0:02:09.7]}
32. Qxa5 {[%clk 0:00:21.9]} 32... b5 {[%clk 0:02:06.2]} 33. Qd8 {[%clk
0:00:19.6]} 33... Qf4+ {[%clk 0:02:01]} 34. Kg1 {[%clk 0:00:18.5]} 34... c5
{[%clk 0:01:58.5]} 35. Qd5 {[%clk 0:00:14.7]} 35... e4 {[%clk 0:01:54.5]} 36.
Ng5 {[%clk 0:00:10.9]} 36... e3 {[%clk 0:01:53.3]} 37. fxe3 {[%clk 0:00:08.1]}
37... Qxe3+ {[%clk 0:01:54.2]} 38. Kh1 {[%clk 0:00:08.5]} 38... Qc1+ {[%clk
0:01:53.3]} 39. Kh2 {[%clk 0:00:06.8]} 39... Qf4+ {[%clk 0:01:53.7]} 40. Kg1
{[%clk 0:00:03.9]} 40... b4 {[%clk 0:01:53.3]} 41. cxb4 {[%clk 0:00:02.9]} 41...
cxb4 {[%clk 0:01:54.2]} 42. Nf3 {[%clk 0:00:02]} 42... Qe3+ {[%clk 0:01:47.4]}
43. Kf1 {[%clk 0:00:02.3]} 43... Qh6 {[%clk 0:01:43.9]} 44. Qd2 {[%clk
0:00:02.2]} 44... Qxd2 {[%clk 0:01:43.3]} 45. Nxd2 {[%clk 0:00:03.1]} 45... Kg7
{[%clk 0:01:43.4]} 46. Ke2 {[%clk 0:00:03.1]} 46... Kf6 {[%clk 0:01:43.5]} 47.
Kd3 {[%clk 0:00:03]} 47... Ke5 {[%clk 0:01:43.5]} 48. Kc4 {[%clk 0:00:02.6]}
48... Kf4 {[%clk 0:01:43.5]} 49. Nf3 {[%clk 0:00:02.7]} 49... f6 {[%clk
0:01:41.3]} 50. Kd3 {[%clk 0:00:02.6]} 50... Kg3 {[%clk 0:01:41.2]} 51. Ne1
{[%clk 0:00:03.5]} 51... Bd6 {[%clk 0:01:39.1]} 52. Ke2 {[%clk 0:00:03.8]} 52...
b3 {[%clk 0:01:37.7]} 53. Nd3 {[%clk 0:00:04.7]} 53... Be5 {[%clk 0:01:37.6]}
54. Kd2 {[%clk 0:00:05]} 0-1

[Event "Early-Titled-Tuesday-Blitz-March-26-2024"]
[Site "Chess.com"]
[Date "2024.03.26"]
[Round "3"]
[White "gurelediz"]
[Black "Byniolus"]
[Result "0-1"]
[WhiteElo "2941"]
[BlackElo "2759"]
[TimeControl "180+1"]
[EndTime "8:27:32 PDT"]
[Termination "Byniolus won by resignation"]

1. e4 {[%clk 0:03:00.9]} 1... d5 {[%clk 0:03:00]} 2. exd5 {[%clk 0:02:59.9]}
2... Nf6 {[%clk 0:03:00.4]} 3. d4 {[%clk 0:02:56.4]} 3... Nxd5 {[%clk
0:03:00.9]} 4. Nf3 {[%clk 0:02:56.3]} 4... Bg4 {[%clk 0:03:00.8]} 5. Be2 {[%clk
0:02:56.9]} 5... e6 {[%clk 0:03:00.5]} 6. h3 {[%clk 0:02:57.6]} 6... Bh5 {[%clk
0:02:59.6]} 7. O-O {[%clk 0:02:58.3]} 7... Be7 {[%clk 0:02:58.7]} 8. c4 {[%clk
0:02:58.9]} 8... Nb6 {[%clk 0:02:58.6]} 9. Be3 {[%clk 0:02:57.6]} 9... Nc6
{[%clk 0:02:58.9]} 10. Nbd2 {[%clk 0:02:48.5]} 10... O-O {[%clk 0:02:59.1]} 11.
Rc1 {[%clk 0:02:46.4]} 11... Bf6 {[%clk 0:02:58.2]} 12. Ne4 {[%clk 0:02:46.3]}
12... Be7 {[%clk 0:02:53.9]} 13. Ng3 {[%clk 0:02:40.3]} 13... Bg6 {[%clk
0:02:53.7]} 14. Bd3 {[%clk 0:02:22.4]} 14... Qd7 {[%clk 0:02:40.5]} 15. Bxg6
{[%clk 0:02:21.9]} 15... hxg6 {[%clk 0:02:41.4]} 16. Qe2 {[%clk 0:02:22.1]}
16... Rad8 {[%clk 0:02:40.1]} 17. Rfd1 {[%clk 0:02:22.8]} 17... Rfe8 {[%clk
0:02:38.4]} 18. a3 {[%clk 0:02:20.9]} 18... a5 {[%clk 0:02:23.1]} 19. Qc2 {[%clk
0:02:20.7]} 19... Qc8 {[%clk 0:02:15.3]} 20. Ne4 {[%clk 0:02:05.2]} 20... Bf8
{[%clk 0:02:02]} 21. Rd3 {[%clk 0:01:58]} 21... Ne7 {[%clk 0:01:57.5]} 22. Bg5
{[%clk 0:01:48]} 22... Qa8 {[%clk 0:01:46.4]} 23. Ne5 {[%clk 0:01:44.7]} 23...
Nd7 {[%clk 0:01:39.2]} 24. Rf3 {[%clk 0:01:05.4]} 24... Nf5 {[%clk 0:01:19.4]}
25. Qc3 {[%clk 0:00:57]} 25... Nxe5 {[%clk 0:01:07.3]} 26. dxe5 {[%clk
0:00:57.9]} 26... Nd4 {[%clk 0:01:07.9]} 27. Re3 {[%clk 0:00:49.4]} 27... Be7
{[%clk 0:01:03.8]} 28. Rce1 {[%clk 0:00:43.2]} 28... a4 {[%clk 0:00:59.3]} 29.
Bxe7 {[%clk 0:00:40]} 29... Rxe7 {[%clk 0:01:00.2]} 30. g4 {[%clk 0:00:40.4]}
30... b6 {[%clk 0:00:55]} 31. Rd3 {[%clk 0:00:36.9]} 31... Red7 {[%clk
0:00:52.8]} 32. Kf1 {[%clk 0:00:36.3]} 32... Ne2 {[%clk 0:00:41.6]} 33. Kxe2
{[%clk 0:00:32.2]} 33... Rxd3 {[%clk 0:00:41.3]} 34. Qxd3 {[%clk 0:00:33.1]}
34... Rxd3 {[%clk 0:00:39.3]} 35. Kxd3 {[%clk 0:00:34]} 35... b5 {[%clk
0:00:34.2]} 36. Kc3 {[%clk 0:00:26]} 36... Qa5+ {[%clk 0:00:32]} 0-1